bitfinex/quotes_ETHUSD_20220101
["timestamp","ask_amount","ask_price","bid_price","bid_amount"]
[1641055087118,0.66881,3738.7,3738.1,0.00568423]
[1641055087919,1.33764,3739.1,3738.1,0.00568423]
[1641055088116,1.33764,3739.1,3738.0,0.00625266]
[1641055088317,2.7,3738.7,3738.0,0.00625266]
[1641055089619,1.32407055,3738.2,3738.0,0.00625266]
[1641055089821,3.91898,3738.1,3738.0,0.00625266]
[1641055090019,3.91898,3738.1,3737.8,0.0073895]
[1641055090419,3.91898,3738.1,3737.7,0.00795793]
[1641055090653,3.91898,3738.1,3737.4,0.0096632]
[1641055090861,4.58799,3738.1,3737.4,0.0096632]
[1641055091059,0.66901,3737.8,3737.4,0.0096632]
[1641055091559,0.66901,3737.8,3737.2,0.01080004]
[1641055091756,1.3380022,3737.8,3737.2,0.01080004]
[1641055092164,0.669,3737.6,3737.2,0.01080004]
[1641055092562,0.669,3737.6,3737.1,0.01136847]
[1641055092862,1.98411147,3737.6,3737.1,0.01136847]
[1641055093262,1.98411147,3737.6,3736.9,0.01250531]
[1641055093464,0.669,3737.6,3736.9,0.01250531]
[1641055093664,0.669,3737.6,3736.7,0.68265216]
[1641055093865,0.669,3737.6,3737.3,1.72605008]
[1641055094165,0.669,3737.6,3737.4,0.0096632]
[1641055096016,7.54084254,3737.5,3737.4,0.0096632]
[1641055096219,4.37906254,3737.5,3737.4,0.0096632]
[1641055096417,4.37906254,3737.5,3737.2,0.01080004]
[1641055096617,0.6690613,3737.4,3737.2,0.01080004]
[1641055096920,0.66906,3737.3,3737.2,0.01080004]
[1641055097922,3.36906,3737.3,3736.8,0.01307374]
[1641055098756,2.7,3737.3,3736.8,0.01307374]
[1641055098954,5.74084254,3737.3,3736.8,1.73912382]
[1641055099358,5.74084254,3737.3,3736.9,0.01250531]
[1641055099758,2.7,3737.3,3736.9,0.01250531]
[1641055100155,2.7,3737.3,3736.3,0.0603]
[1641055100156,2.7,3737.3,3736.5,0.01477901]
[1641055100455,2.7,3737.3,3736.4,0.01534743]
[1641055100854,2.7,3737.3,3736.4,0.31534743]
[1641055101056,2.7,3737.3,3736.4,0.01534743]
[1641055101254,2.7,3737.3,3736.5,1.35281901]
[1641055101454,2.7,3737.3,3736.5,1.33804]
[1641055101655,2.7,3737.3,3736.6,0.01421058]
[1641055102115,2.7,3737.3,3736.4,0.01534743]
[1641055102313,2.7,3737.3,3736.5,0.01477901]
[1641055102515,2.7,3737.3,3736.4,0.01534743]
[1641055102713,3.36909,3737.3,3736.4,0.01534743]
[1641055102915,3.36909,3737.3,3736.2,0.01648428]
[1641055103114,1.07415969,3737.1,3736.2,0.01648428]
[1641055103315,1.07415969,3737.1,3736.2,0.31648428]
[1641055103715,1.07415969,3737.1,3736.3,0.68501585]
[1641055104116,1.07415969,3737.1,3736.4,0.01534743]
[1641055104718,3.36909,3737.3,3736.4,0.01534743]
[1641055104917,2.7,3737.3,3736.7,0.66902]
[1641055105120,2.7,3737.3,3737.0,0.66892]
[1641055105318,2.7,3737.3,3737.1,2.56722026]
[1641055105515,2.7,3737.3,3737.2,4.68022026]
[1641055105758,2.7,3737.3,3737.2,4.24463609]
[1641055105959,2.7,3737.3,3737.2,3.94463609]
[1641055106557,2.7,3737.3,3737.2,2.5780203]
[1641055107368,2.7,3737.3,3737.2,2.8780203]
[1641055107565,2.7,3737.3,3737.2,3.1780203]
[1641055109267,2.7,3737.3,3737.2,6.5280203]
[1641055109919,0.05999992,3737.8,3737.3,6.15]
[1641055110119,0.05999992,3737.8,3737.5,2.0064223]
[1641055110319,11.2268,3739.2,3737.7,4.6]
[1641055110518,11.2268,3739.2,3737.9,0.3]
[1641055110719,11.2268,3739.2,3738.0,2.11768341]
[1641055110917,11.2268,3739.2,3738.0,2.12393607]
[1641055111218,7.2521,3739.2,3738.1,0.00568423]
[1641055111419,7.2521,3739.2,3738.1,0.67443423]
[1641055111619,3.9546,3739.2,3738.3,0.66872]
[1641055111818,1.01031294,3739.3,3738.4,1.88399794]
[1641055112017,0.00113684,3739.3,3738.4,1.8879769]
[1641055112220,0.00113684,3739.3,3738.5,0.00341054]
[1641055113162,0.66877,3739.2,3738.5,0.00341054]
[1641055113763,0.66877,3739.2,3738.2,0.00511581]
[1641055114565,0.66877,3739.2,3738.3,0.66873]
[1641055114766,0.66877,3739.2,3738.4,1.84780855]
[1641055114968,0.66877,3739.2,3738.4,1.85178751]
[1641055115170,0.66877,3739.2,3738.5,0.00341054]
[1641055115568,0.66877,3739.2,3738.3,0.00454739]
[1641055117411,0.53576745,3740.3,3739.8,1.11449906]
[1641055117715,0.53576745,3740.3,3739.9,0.387]
[1641055117909,0.53576745,3740.3,3740.0,2.19627898]
[1641055118108,0.53576745,3740.3,3740.1,0.387]
[1641055118708,3.03920399,3740.2,3740.1,0.387]
[1641055119107,3.03920399,3740.2,3740.1,3.687]
[1641055119309,3.03920399,3740.2,3740.1,0.687]
[1641055119510,3.03920399,3740.2,3740.1,0.387]
[1641055119811,3.03920399,3740.2,3740.1,2.37293332]
[1641055120011,3.03920399,3740.2,3740.1,2.67293332]
[1641055123365,3.03920399,3740.2,3740.1,3.34126332]
[1641055124165,3.03920399,3740.2,3740.1,7.74126332]
[1641055124410,3.03920399,3740.2,3740.1,3.34126332]
[1641055125014,3.03920399,3740.2,3740.1,5.74126332]
[1641055125617,3.23576745,3740.3,3740.1,5.74126332]
[1641055125815,3.23576745,3740.3,3740.2,5.41645541]
[1641055126015,3.23576745,3740.3,3740.2,2.70345541]
[1641055126218,3.24258853,3740.3,3740.2,2.70345541]
[1641055129660,3.24258853,3740.3,3740.2,0.387]
[1641055129855,3.24258853,3740.3,3739.8,1.11449906]
[1641055130056,3.24258853,3740.3,3739.8,2.95768836]
[1641055130255,0.00625266,3740.2,3739.8,2.95768836]
[1641055130659,3.23576745,3740.3,3739.8,2.95768836]
[1641055130660,0.00568424,3740.1,3739.8,2.95768836]
[1641055131057,0.00511581,3740.0,3739.8,2.95768836]
[1641055131255,0.00511581,3740.0,3739.8,1.11449906]
[1641055131456,0.00454739,3739.9,3739.8,1.11449906]
[1641055133721,0.00454739,3739.9,3739.8,2.98059862]
[1641055133922,0.00454739,3739.9,3739.8,1.11449906]
[1641055134822,0.00454739,3739.9,3739.8,2.94181133]
[1641055135023,0.00454739,3739.9,3739.8,2.94406876]
[1641055138971,0.00454739,3739.9,3739.8,1.11449906]
[1641055140213,0.00454739,3739.9,3739.8,2.94486093]
[1641055140413,0.00454739,3739.9,3739.8,1.11449906]
[1641055140814,0.00454739,3739.9,3739.8,2.94949665]
[1641055141013,0.00454739,3739.9,3739.8,1.11449906]
[1641055141223,0.00454739,3739.9,3739.8,2.97882369]
[1641055145064,3.04343524,3739.9,3739.8,1.11449906]
[1641055145863,3.04343524,3739.9,3739.8,2.94974887]
[1641055146465,3.04343524,3739.9,3739.8,1.11449906]
[1641055148610,0.00454739,3739.9,3739.8,1.11449906]
[1641055149211,0.00454739,3739.9,3739.8,2.93910092]
[1641055150011,0.00454739,3739.9,3739.8,3.32610092]
[1641055151575,0.00454739,3739.9,3739.8,3.62610092]
[1641055151765,0.00454739,3739.9,3739.8,3.92610092]
[1641055152969,0.00454739,3739.9,3739.8,4.59453092]
[1641055154824,0.00454739,3739.9,3739.8,6.89453092]
[1641055156831,0.00454739,3739.9,3739.8,4.59453092]
[1641055158367,0.00454739,3739.9,3739.8,3.92610092]
[1641055161921,3.23576745,3740.3,3739.9,0.6684764]
[1641055162125,3.23576745,3740.3,3740.0,0.387]
[1641055162426,0.00625266,3740.2,3740.1,0.387]
[1641055163422,0.00625266,3740.2,3739.8,1.11449906]
[1641055163823,0.00568424,3740.1,3739.8,1.11449906]
[1641055164024,0.00568424,3740.1,3739.7,0.48019631]
[1641055164025,0.012902,3739.9,3739.7,0.48019631]
[1641055164428,4.72819364,3739.8,3739.7,0.48019631]
[1641055164625,5.72819364,3739.8,3739.7,0.48019631]
[1641055164824,4.72819364,3739.8,3739.7,0.48019631]
[1641055165227,4.72819364,3739.8,3739.7,0.42031193]
[1641055165428,8.76734039,3739.8,3739.7,0.42031193]
[1641055168572,5.01734039,3739.8,3739.7,0.42031193]
[1641055185427,6.01734039,3739.8,3739.7,0.42031193]
[1641055186028,5.01734039,3739.8,3739.7,0.42031193]
[1641055187027,6.01734039,3739.8,3739.7,0.42031193]
[1641055188464,3.71183572,3739.8,3739.7,0.42031193]
[1641055189467,3.04312572,3739.8,3739.7,0.42031193]
[1641055190070,0.00397897,3739.8,3739.7,0.42031193]
[1641055190467,0.00397897,3739.8,3739.7,1.08883783]
[1641055191068,0.00397897,3739.8,3739.7,0.42031193]
[1641055191667,3.04321668,3739.8,3739.7,0.42031193]
[1641055192122,0.00397897,3739.8,3739.7,0.42031193]
[1641055192924,3.04321668,3739.8,3739.7,0.42031193]
[1641055193925,3.04321668,3739.8,3739.7,1.08883573]
[1641055194324,3.03923771,3739.8,3739.7,1.08883573]
[1641055195124,1.33505179,3740.1,3739.7,1.08883573]
[1641055195672,0.00511581,3740.0,3739.8,0.66855]
[1641055196073,0.00454739,3739.9,3739.8,0.66855]
[1641055196671,0.00454739,3739.9,3739.7,2.42582573]
[1641055197074,0.00397897,3739.8,3739.7,2.42582573]
[1641055206187,0.00397897,3739.8,3739.7,1.75730193]
[1641055208627,0.00397897,3739.8,3739.7,2.42582793]
[1641055209529,0.00397897,3739.8,3739.7,1.75730193]
[1641055210330,3.04318467,3739.8,3739.7,1.75730193]
[1641055211175,0.00397897,3739.8,3739.7,1.75730193]
[1641055212077,0.00397897,3739.8,3739.7,4.60730193]
[1641055214078,3.04291303,3739.8,3739.7,4.60730193]
[1641055214281,3.04291303,3739.8,3739.7,1.75730193]
[1641055226985,3.03893406,3739.8,3739.7,1.75730193]
[1641055228083,1.33505179,3740.1,3739.7,1.75730193]
[1641055228890,1.33505179,3740.0,3739.7,1.75730193]
[1641055229286,1.33505179,3740.0,3739.7,0.42031193]
[1641055229287,0.00454739,3739.9,3739.7,0.42031193]
[1641055229742,0.66878,3739.4,3739.0,0.22791659]
[1641055229938,2.00204503,3739.4,3739.0,0.22791659]
[1641055230139,0.00113685,3739.3,3739.0,0.22791659]
[1641055230544,0.00113685,3739.3,3738.2,3.29607828]
[1641055230741,0.6688,3739.0,3738.4,0.66878]
[1641055231139,0.6688,3739.0,3738.5,0.00341054]
[1641055231743,0.6688,3739.0,3738.3,0.00454739]
[1641055232146,0.00113685,3739.3,3738.4,0.668757]
[1641055232147,0.66876,3739.2,3738.4,0.668757]
[1641055232944,3.03983062,3739.1,3738.4,0.668757]
[1641055233572,3.03983062,3739.1,3738.6,0.66875]
[1641055234075,3.03983062,3739.1,3738.7,0.00227369]
[1641055234679,0.6688,3739.0,3738.7,0.00227369]
[1641055235079,0.6688,3739.0,3738.4,0.00397896]
[1641055235478,0.6688,3739.0,3738.3,0.00454739]
[1641055235680,0.6688,3739.0,3738.2,0.00511581]
[1641055236378,0.6688,3739.0,3738.2,0.67388581]
[1641055236582,0.6688,3739.0,3738.4,0.66878]
[1641055236778,1.30872554,3738.8,3738.4,0.66878]
[1641055237038,1.30872554,3738.8,3738.3,0.00454739]
[1641055238638,1.30872554,3738.8,3738.3,0.67334739]
[1641055238839,0.6688,3739.0,3738.3,0.67334739]
[1641055239039,0.66877,3739.2,3738.4,0.00397896]
[1641055239242,0.66877,3739.2,3738.4,0.67273206]
[1641055239939,3.03983754,3739.1,3738.4,0.67273206]
[1641055240142,3.03983754,3739.1,3738.6,0.66876]
[1641055240542,3.03983754,3739.1,3738.7,0.00227369]
[1641055241581,5.73983754,3739.1,3738.7,0.00227369]
[1641055241986,3.03983754,3739.0,3738.7,0.00227369]
[1641055242588,3.03983754,3739.0,3738.3,0.00454739]
[1641055243087,3.03983754,3739.0,3738.4,0.66876]
[1641055243088,4.37488933,3739.0,3738.4,0.66876]
[1641055245124,5.04368933,3739.0,3738.3,0.67333739]
[1641055245523,5.04368933,3739.0,3738.4,0.00397896]
[1641055245930,3.03983754,3738.9,3738.4,0.00397896]
[1641055246328,3.03983754,3738.9,3738.4,0.66877]
[1641055246528,4.37488933,3739.0,3738.4,0.67274896]
[1641055247633,3.03983754,3739.0,3738.4,0.67274896]
[1641055249887,3.03983754,3739.0,3738.6,0.66873]
[1641055250291,3.03983754,3739.0,3738.7,0.00227369]
[1641055251692,3.03983754,3739.0,3738.7,0.67099369]
[1641055252136,3.03983754,3739.0,3738.8,0.00170527]
[1641055254536,3.03983754,3739.0,3738.8,0.67037827]
[1641055254934,3.03983754,3739.0,3738.9,0.00113684]
[1641055261530,3.03983754,3739.0,3738.8,0.00170527]
[1641055262731,3.03983754,3739.0,3738.9,0.387]
[1641055263172,3.03983754,3739.0,3738.9,0.38813684]
[1641055272281,3.03983754,3739.0,3738.9,0.00113684]
[1641055272581,3.03983754,3739.0,3738.7,0.66872]
[1641055272582,3.03983754,3739.0,3738.8,1.33904787]
[1641055272783,3.03983754,3739.0,3738.8,1.72604787]
[1641055272980,3.03983754,3739.0,3738.9,0.00113684]
[1641055273381,3.03983754,3739.0,3738.9,8.62976803]
[1641055273979,3.03983754,3739.0,3738.9,13.46576803]
[1641055274430,2.7,3739.1,3738.9,13.46576803]
[1641055274629,2.7,3739.1,3739.0,13.47865261]
[1641055274829,2.7,3739.1,3739.0,15.13412261]
[1641055275732,2.7,3739.1,3739.0,15.3620392]
[1641055276533,2.7,3739.1,3739.0,9.2620392]
[1641055277738,2.7,3739.1,3739.0,9.03412261]
[1641055285149,2.7,3739.1,3739.0,7.1599393]
[1641055285350,0.29425926,3739.1,3739.0,7.1599393]
[1641055285550,0.29425926,3739.1,3739.0,22.8099393]
[1641055285781,0.29425926,3739.1,3739.0,7.1599393]
[1641055286178,0.29425926,3739.1,3739.0,7.38785589]
[1641055286378,0.29425926,3739.1,3739.0,7.2957393]
[1641055287682,0.29425926,3739.1,3739.0,9.13803984]
[1641055288182,0.29425926,3739.1,3739.0,11.2457393]
[1641055288382,5.926e-05,3739.1,3739.0,26.8957393]
[1641055288783,0.05988672,3740.0,3739.5,1.33678]
[1641055288981,0.05988672,3740.0,3739.7,0.6683878]
[1641055289181,0.00454739,3739.9,3739.8,2.937]
[1641055289635,0.00625266,3740.2,3739.8,3.3728]
[1641055290036,0.53576745,3740.3,3739.8,3.3728]
[1641055290037,0.00568424,3740.1,3739.8,3.3728]
[1641055290243,0.00568424,3740.1,3739.8,4.0097]
[1641055290436,0.00511581,3740.0,3739.8,6.68312]
[1641055290636,0.00511581,3740.0,3739.8,9.3565324]
[1641055290835,0.53576745,3740.3,3739.8,9.3565324]
[1641055290836,0.00625266,3740.2,3739.8,9.3565324]
[1641055291038,0.00625266,3740.2,3740.0,1.3367153]
[1641055291241,0.53576745,3740.3,3740.1,3.087]
[1641055291639,0.00625266,3740.2,3740.1,3.387]
[1641055291839,0.00625266,3740.2,3740.1,4.7237081]
[1641055292042,0.00625266,3740.2,3740.1,2.6920581]
[1641055292243,0.00625266,3740.2,3740.1,2.6920681]
[1641055292644,0.00625266,3740.2,3740.1,2.8278681]
[1641055293043,0.00625266,3740.2,3740.1,3.1278681]
[1641055294776,0.00625266,3740.2,3740.1,2.5278681]
[1641055295379,0.00625266,3740.2,3740.1,1.19116]
[1641055296781,0.00625266,3740.2,3740.1,0.1358]
[1641055297033,0.00625266,3740.2,3740.1,0.0001]
[1641055297034,5.80625266,3740.2,3740.1,0.0001]
[1641055297234,6.80625266,3740.2,3740.1,0.0001]
[1641055298032,9.84558301,3740.2,3740.1,0.0001]
[1641055301688,6.80625266,3740.2,3740.1,0.0001]
[1641055303790,6.75625266,3740.2,3740.1,0.0001]
[1641055305838,1.0,3740.2,3740.1,0.0001]
[1641055306038,3.90437745,3740.3,3740.1,0.0001]
[1641055310195,7.15,3740.2,3740.1,0.0001]
[1641055310791,10.18933386,3740.2,3740.1,0.0001]
[1641055311193,11.52667386,3740.2,3740.1,0.0001]
[1641055315138,9.18933386,3740.2,3740.1,0.0001]
[1641055316380,10.18933386,3740.2,3740.1,0.0001]
[1641055316981,13.34285511,3740.2,3740.1,0.0001]
[1641055318587,11.52662386,3740.2,3740.1,0.0001]
[1641055319736,12.12662386,3740.2,3740.1,0.0001]
[1641055323680,11.52662386,3740.2,3740.1,0.0001]
[1641055324085,9.18933386,3740.2,3740.1,0.0001]
[1641055324481,3.03933386,3740.2,3740.1,0.0001]
[1641055326383,3.23576745,3740.3,3740.1,0.0001]
[1641055327033,3.23576745,3740.3,3740.1,0.66857]
[1641055327230,3.23576745,3740.3,3740.2,0.387]
[1641055331090,3.23576745,3740.3,3740.2,0.687]
[1641055334193,3.23576745,3740.3,3740.2,0.387]
[1641055338793,6.27443881,3740.3,3740.2,0.387]
[1641055339997,6.27443881,3740.3,3740.2,2.19017614]
[1641055340699,6.27443881,3740.3,3740.2,0.387]
[1641055341099,3.23576745,3740.3,3740.2,0.387]
[1641055345352,3.23576745,3740.3,3740.2,2.46111854]
[1641055345985,3.23576745,3740.3,3740.2,0.687]
[1641055346184,3.23576745,3740.3,3740.2,2.0236]
[1641055348391,3.23576745,3740.3,3740.2,0.687]
[1641055351140,3.23576745,3740.3,3740.2,0.387]
[1641055352842,3.23576745,3740.3,3740.2,1.05536]
[1641055353886,3.23576745,3740.3,3740.2,1.35536]
[1641055354688,3.23576745,3740.3,3740.2,0.687]
[1641055356193,0.66841,3741.3,3740.3,2.32431518]
[1641055356394,5.16093689,3741.6,3740.6,2.6731049]
[1641055356594,0.00511581,3741.1,3740.7,8.06518583]
[1641055356789,0.00511581,3741.1,3740.9,0.66825]
[1641055357046,5.16093689,3741.6,3741.0,9.34804284]
[1641055357245,0.60296531,3741.6,3741.0,9.34804284]
[1641055357442,0.60296531,3741.6,3741.4,5.55377457]
[1641055357443,0.00738951,3741.5,3741.4,5.55377457]
[1641055357642,0.00738951,3741.5,3741.4,6.24077457]
[1641055357840,0.00738951,3741.5,3741.4,6.54077457]
[1641055358643,0.00738951,3741.5,3741.4,8.59355752]
[1641055359048,0.56035482,3741.6,3741.5,2.45]
[1641055359244,0.56035482,3741.6,3741.5,5.57885012]
[1641055360145,0.56035482,3741.6,3741.5,5.58942267]
[1641055362100,0.56035482,3741.6,3741.5,3.13942267]
[1641055362301,3.26035482,3741.6,3741.5,3.13942267]
[1641055363402,3.59807313,3741.6,3741.5,3.13942267]
[1641055364004,3.59807313,3741.6,3741.5,3.08942267]
[1641055364432,0.56035482,3741.6,3741.5,3.08942267]
[1641055372941,3.16035482,3741.6,3741.5,3.08942267]
[1641055386697,1.91927795,3741.6,3741.5,3.08942267]
[1641055386945,1.91927795,3741.6,3741.5,4.08942267]
[1641055389548,1.91927795,3741.6,3741.5,5.88821346]
[1641055393192,1.91927795,3741.6,3741.5,4.88821346]
[1641055393992,0.0611,3742.6,3742.0,0.66805]
[1641055394193,0.01206829,3742.7,3742.2,2.0041439]
[1641055394435,3.042784,3742.5,3742.3,0.387]
[1641055394836,0.00511581,3742.4,3742.3,0.387]
[1641055395236,0.00511581,3742.4,3742.3,1.72309]
[1641055395642,0.00511581,3742.4,3742.3,3.0591639]
[1641055395838,3.04221558,3742.4,3742.3,3.0591639]
[1641055396038,0.00511581,3742.4,3742.3,3.0591639]
[1641055396938,3.04221558,3742.4,3742.3,3.0591639]
[1641055399995,3.04221558,3742.4,3742.3,4.84732169]
[1641055401396,3.04221558,3742.4,3742.3,3.0591639]
[1641055401794,3.04221558,3742.4,3742.3,4.85411973]
[1641055402650,3.04221558,3742.4,3742.3,3.0591639]
[1641055403854,4.94221558,3742.4,3742.3,3.0591639]
[1641055404055,4.94221558,3742.4,3742.3,4.84763521]
[1641055404352,4.94221558,3742.4,3742.3,3.0591639]
[1641055406789,4.94221558,3742.4,3742.3,2.3911339]
[1641055406994,4.94221558,3742.4,3742.3,2.40170416]
[1641055413057,4.94221558,3742.4,3742.3,2.70170416]
[1641055413590,4.94221558,3742.4,3742.3,2.40170416]
[1641055413794,4.94221558,3742.4,3742.3,0.01057026]
[1641055415193,5.95244766,3742.4,3742.3,0.00089026]
[1641055415793,4.94221558,3742.4,3742.3,0.00089026]
[1641055419956,6.2921038,3742.4,3742.3,0.00089026]
[1641055421601,4.94221558,3742.4,3742.3,0.00089026]
[1641055422195,5.94221558,3742.4,3742.3,0.00089026]
[1641055422404,6.30675471,3742.4,3742.3,0.00089026]
[1641055423199,4.94221558,3742.4,3742.3,0.00089026]
[1641055423800,6.30675471,3742.4,3742.3,0.00089026]
[1641055424839,6.3016389,3742.4,3742.3,0.00089026]
[1641055428801,4.93709977,3742.4,3742.3,0.00089026]
[1641055432951,4.93709977,3742.4,3741.9,0.05988025]
[1641055433449,0.00454738,3742.3,3741.9,0.05988025]
[1641055433849,0.00397896,3742.2,3741.9,0.05988025]
[1641055434158,0.00341054,3742.1,3741.9,0.05988025]
[1641055434553,0.00284211,3742.0,3741.9,0.05988025]
[1641055435353,0.00284211,3742.0,3741.8,1.33635]
[1641055435701,0.00227369,3741.9,3741.8,1.33635]
[1641055435902,0.00227369,3741.9,3741.7,2.0045065]
[1641055436302,0.00170527,3741.8,3741.7,2.0045065]
[1641055437311,0.00170527,3741.8,3741.7,1.33634]
[1641055440551,0.00170527,3741.8,3741.7,3.14919171]
[1641055442656,0.00170527,3741.8,3741.7,1.33634]
[1641055447248,0.00170527,3741.8,3741.7,3.13280494]
[1641055448448,0.00170527,3741.8,3741.7,6.03280494]
[1641055449052,0.00170527,3741.8,3741.7,7.43459455]
[1641055449249,0.00170527,3741.8,3741.7,7.73459455]
[1641055449451,3.03709977,3742.3,3741.8,4.35]
[1641055449652,3.03709977,3742.3,3742.1,0.66798]
[1641055449850,3.03709977,3742.3,3742.2,1.98025177]
[1641055450056,3.03709977,3742.3,3742.2,2.58025177]
[1641055450354,3.03994188,3742.3,3742.2,2.58025177]
[1641055451506,0.00284211,3742.3,3742.2,2.58025177]
[1641055454462,0.00284211,3742.3,3742.2,2.59274807]
[1641055454665,0.00284211,3742.3,3742.2,2.97974807]
[1641055455166,0.00284211,3742.3,3742.2,2.96725177]
[1641055464250,1.85284211,3742.4,3742.3,1.3358578]
[1641055464454,1.85284211,3742.4,3742.3,5.03127132]
[1641055466318,0.05988044,3743.0,3742.3,5.03127132]
[1641055466513,0.05988044,3743.0,3742.6,0.66791]
[1641055466714,0.00341054,3742.9,3742.7,1.90070251]
[1641055467122,0.00284212,3742.8,3742.7,1.90070251]
[1641055467719,0.00284212,3742.8,3742.7,3.23659131]
[1641055467921,0.00284212,3742.8,3742.7,3.18659131]
[1641055468126,0.00284212,3742.8,3742.7,3.48659131]
[1641055468722,0.00284212,3742.8,3742.7,3.18659131]
[1641055468923,0.00284212,3742.8,3742.7,2.51864131]
[1641055469322,0.00284212,3742.8,3742.7,4.3112473]
[1641055469560,0.00284212,3742.8,3742.7,2.41054479]
[1641055469964,0.00284212,3742.8,3742.7,0.6179388]
[1641055470160,0.00284212,3742.8,3742.6,1.33587]
[1641055470560,0.0022737,3742.7,3742.6,0.66794]
[1641055470762,0.0022737,3742.7,3742.5,1.33582]
[1641055470960,0.0022737,3742.7,3742.4,1.79260599]
[1641055471170,0.00170527,3742.6,3742.4,1.79260599]
[1641055471559,0.00113685,3742.5,3742.4,1.79260599]
[1641055472165,0.66937685,3742.5,3741.8,0.05987979]
[1641055472565,1.66937685,3742.5,3741.9,0.00227369]
[1641055472966,3.03632964,3742.4,3741.9,0.00227369]
[1641055473204,3.70453964,3742.4,3741.9,0.00227369]
[1641055473603,3.70453964,3742.4,3741.7,0.00341054]
[1641055473806,1.29626556,3741.9,3741.7,0.00341054]
[1641055474206,5.6183,3741.8,3741.7,0.00341054]
[1641055474404,5.6183,3741.8,3741.6,0.00397896]
[1641055475005,8.65462964,3741.8,3741.6,0.00397896]
[1641055475405,8.65462964,3741.8,3741.0,0.0073895]
[1641055475605,3.03632964,3741.7,3741.0,0.6756795]
[1641055475805,3.03632964,3741.7,3741.0,1.3439695]
[1641055476006,3.03632964,3741.7,3741.1,0.00682108]
[1641055476607,3.03632964,3741.7,3741.0,0.0073895]
[1641055476806,3.03632964,3741.7,3741.1,0.66827]
[1641055477365,3.03632964,3741.9,3741.2,0.00625265]
[1641055477570,4.14448426,3741.9,3741.2,0.00625265]
[1641055477764,0.6683,3741.8,3741.2,0.00625265]
[1641055478165,1.6683,3741.8,3741.1,0.00682108]
[1641055478566,3.03632964,3741.7,3741.1,0.00682108]
[1641055478971,0.66836,3741.5,3740.9,0.00795793]
[1641055479570,0.66836,3741.5,3740.8,0.00852635]
[1641055480928,3.03773256,3741.4,3740.8,0.00852635]
[1641055481620,1.34114942,3741.1,3740.8,0.00852635]
[1641055483023,1.34114942,3741.1,3740.6,0.0096632]
[1641055483224,0.66836,3741.5,3740.6,0.0096632]
[1641055483625,0.66836,3741.5,3740.6,1.80758825]
[1641055483826,0.66836,3741.5,3740.6,0.0096632]
[1641055484025,3.03784669,3741.4,3740.7,0.00909477]
[1641055484228,3.03784669,3741.4,3740.6,0.0096632]
[1641055484468,0.66839,3741.3,3740.6,0.0096632]
[1641055485067,1.66839,3741.3,3740.6,0.0096632]
[1641055485669,3.03784669,3741.2,3740.6,0.0096632]
[1641055486269,0.66844,3741.1,3740.6,0.0096632]
[1641055486668,0.66844,3741.1,3740.4,0.01080004]
[1641055488517,3.03811282,3741.0,3740.4,0.01080004]
[1641055491825,3.03811282,3741.0,3740.5,1.79260599]
[1641055492284,3.03811282,3741.0,3740.6,0.0096632]
[1641055494083,3.03811282,3741.0,3740.6,1.80226919]
[1641055494483,3.03811282,3741.0,3740.7,0.00909477]
[1641055495085,3.03811282,3741.0,3740.6,0.0096632]
[1641055495915,3.03811282,3741.0,3740.6,1.8170243]
[1641055496218,3.03811282,3741.3,3740.7,1.80170076]
[1641055496614,3.03811282,3741.3,3740.8,0.00852635]
[1641055497224,1.36689132,3741.6,3740.8,0.00852635]
[1641055497425,1.36689132,3741.6,3740.8,1.08088051]
[1641055497622,2.36689132,3741.6,3740.8,1.08088051]
[1641055497822,3.03525132,3741.6,3740.9,0.00795793]
[1641055498023,2.03525132,3741.6,3740.9,0.00795793]
[1641055498224,4.40500414,3741.7,3740.9,0.00795793]
[1641055498423,3.03811282,3741.5,3740.9,0.00795793]
[1641055498824,3.03811282,3741.5,3740.9,0.67625793]
[1641055499024,1.36689132,3741.7,3740.9,0.67625793]
[1641055499325,0.0632,3741.8,3741.0,0.0073895]
[1641055499561,2.28709732,3742.0,3741.0,0.0073895]
[1641055499765,0.66832,3741.8,3741.0,0.0073895]
[1641055500361,0.66832,3741.8,3740.7,0.00909477]
[1641055500562,3.03788831,3741.7,3740.7,0.67742477]
[1641055500762,3.03788831,3741.7,3740.8,1.14385164]
[1641055500960,3.03788831,3741.7,3740.8,1.15237799]
[1641055501162,0.66832,3741.8,3740.9,0.00795793]
[1641055502769,0.66832,3741.8,3740.9,0.67626793]
[1641055503211,0.66832,3741.8,3741.0,0.0073895]
[1641055504614,0.66832,3741.8,3741.0,2.47224915]
[1641055505018,0.66832,3741.8,3741.1,0.00682108]
[1641055505215,2.33667,3742.1,3741.1,0.00682108]
[1641055505216,0.66826,3742.1,3741.1,0.00682108]
[1641055505417,1.36689132,3742.6,3741.2,0.387]
[1641055505615,1.36689132,3742.6,3741.7,0.66816]
[1641055505815,1.36689132,3742.6,3741.8,2.0131438]
[1641055506015,1.36689132,3742.6,3741.8,2.01598591]
[1641055506214,3.1857,3742.8,3741.9,1.06019504]
[1641055506415,1.36689132,3742.9,3742.0,2.04713245]
[1641055506616,0.0022737,3742.7,3742.3,0.6680352]
[1641055506815,0.0022737,3742.7,3742.4,2.5979761]
[1641055507058,0.00170527,3742.6,3742.4,3.2660061]
[1641055507260,0.00170527,3742.6,3742.5,1.88854561]
[1641055507459,15.18444655,3743.6,3742.5,1.88854561]
[1641055507460,0.66804,3743.4,3742.5,1.88854561]
[1641055507861,3.04205788,3743.2,3742.5,1.88854561]
[1641055508058,3.04205788,3743.2,3742.5,3.1110614]
[1641055508259,0.00454739,3743.1,3742.5,3.1110614]
[1641055508661,0.00397897,3743.0,3742.6,0.66802]
[1641055508961,3.03694207,3743.1,3742.7,2.03689141]
[1641055508962,0.00341054,3742.9,3742.7,2.03689141]
[1641055509359,6.15,3743.6,3742.7,2.03689141]
[1641055509360,0.00284212,3742.8,3742.7,2.03689141]
[1641055509962,0.00284212,3742.8,3742.7,2.70480141]
[1641055511103,0.00284212,3742.8,3742.7,2.03689141]
[1641055511905,0.00284212,3742.8,3742.4,0.66804]
[1641055512109,0.00284212,3742.8,3742.3,1.79943135]
[1641055512309,0.0022737,3742.7,3742.3,1.79943135]
[1641055512509,0.0022737,3742.7,3742.1,3.18392025]
[1641055512712,0.66808,3743.1,3742.1,3.18392025]
[1641055512713,0.00170527,3742.6,3742.1,3.18392025]
[1641055513109,0.00113685,3742.5,3742.1,3.18392025]
[1641055513509,3.0406485,3743.0,3742.2,0.66808]
[1641055513912,0.00341054,3742.9,3742.2,0.66808]
[1641055514309,0.00284212,3742.8,3742.2,0.66808]
[1641055514572,0.00284212,3742.8,3742.6,0.5472745]
[1641055514772,0.66808,3743.1,3742.6,0.5472745]
[1641055514773,0.0022737,3742.7,3742.6,0.5472745]